[Event "Titled Tuesday Blitz May 24 Late 2022"]
[White "Veiga, Emerson de Sousa"]
[Black "Aung Thant Zin"]
[WhiteFideId "2151898"]
[BlackFideId "13000063"]
[WhiteElo "2034"]
[BlackElo "2278"]
[Result "0-1"]
[Round "06"]
[TimeControl "180+1"]
[Date "2022.05.25"]
[WhiteClock "0:00:01"]
[BlackClock "0:00:13"]

1. e4 {[%clk 0:03:00]}  c5 {[%clk 0:02:24]} 2. Nf3 {[%clk 0:02:58]}  Nc6 {[%clk 0:02:24]} 3. d4 {[%clk 0:02:58]}  cxd4 {[%clk 0:02:25]} 4. Nxd4 {[%clk 0:02:59]}  Nf6 {[%clk 0:02:25]} 5. Nc3 {[%clk 0:02:59]}  d6 {[%clk 0:02:25]} 6. Bg5 {[%clk 0:02:56]}  e6 {[%clk 0:02:24]} 7. Qd2 {[%clk 0:02:55]}  a6 {[%clk 0:02:25]} 8. f4 {[%clk 0:02:55]}  h6 {[%clk 0:02:25]} 9. Bh4 {[%clk 0:02:55]}  Be7 {[%clk 0:02:25]} 10. Nf3 {[%clk 0:02:55]}  Nxe4 {[%clk 0:02:20]} 11. Nxe4 {[%clk 0:02:53]}  Bxh4+ {[%clk 0:02:18]} 12. Nxh4 {[%clk 0:02:52]}  Qxh4+ {[%clk 0:02:18]} 13. g3 {[%clk 0:02:52]}  Qd8 {[%clk 0:02:19]} 14. Nxd6+ {[%clk 0:02:52]}  Ke7 {[%clk 0:02:19]} 15. O-O-O {[%clk 0:02:49]}  Qc7 {[%clk 0:02:07]} 16. Bg2 {[%clk 0:02:03]}  Rd8 {[%clk 0:02:04]} 17. Nxc8+ {[%clk 0:01:33]}  Raxc8 {[%clk 0:02:01]} 18. Qc3 {[%clk 0:01:32]}  Nd4 {[%clk 0:01:14]} 19. Qxc7+ {[%clk 0:01:21]}  Rxc7 {[%clk 0:01:12]} 20. c3 {[%clk 0:01:21]}  Nf5 {[%clk 0:01:07]} 21. Rxd8 {[%clk 0:01:18]}  Kxd8 {[%clk 0:01:08]} 22. Rd1+ {[%clk 0:01:18]}  Ke7 {[%clk 0:01:08]} 23. Rd3 {[%clk 0:01:13]}  f6 {[%clk 0:01:05]} 24. a4 {[%clk 0:01:12]}  Nd6 {[%clk 0:00:52]} 25. Kc2 {[%clk 0:01:07]}  Rc5 {[%clk 0:00:48]} 26. b4 {[%clk 0:00:58]}  Rc7 {[%clk 0:00:44]} 27. Kb3 {[%clk 0:00:50]}  b6 {[%clk 0:00:43]} 28. Rd4 {[%clk 0:00:47]}  a5 {[%clk 0:00:39]} 29. Bf1 {[%clk 0:00:38]}  e5 {[%clk 0:00:37]} 30. fxe5 {[%clk 0:00:37]}  fxe5 {[%clk 0:00:38]} 31. Rd5 {[%clk 0:00:35]}  Ke6 {[%clk 0:00:39]} 32. Rd1 {[%clk 0:00:21]}  e4 {[%clk 0:00:34]} 33. Rd4 {[%clk 0:00:19]}  Ke5 {[%clk 0:00:34]} 34. Bg2 {[%clk 0:00:16]}  g5 {[%clk 0:00:32]} 35. Bh1 {[%clk 0:00:16]}  h5 {[%clk 0:00:23]} 36. Bg2 {[%clk 0:00:16]}  h4 {[%clk 0:00:23]} 37. Bh1 {[%clk 0:00:15]}  Rf7 {[%clk 0:00:22]} 38. bxa5 {[%clk 0:00:13]}  bxa5 {[%clk 0:00:21]} 39. gxh4 {[%clk 0:00:12]}  gxh4 {[%clk 0:00:20]} 40. Bg2 {[%clk 0:00:11]}  Rf2 {[%clk 0:00:20]} 41. Bh3 {[%clk 0:00:10]}  Rxh2 {[%clk 0:00:19]} 42. Bd7 {[%clk 0:00:10]}  e3 {[%clk 0:00:19]} 43. Bc6 {[%clk 0:00:09]}  e2 {[%clk 0:00:18]} 44. Rd5+ {[%clk 0:00:06]}  Ke6 {[%clk 0:00:17]} 45. Rd2 {[%clk 0:00:02]}  e1=Q {[%clk 0:00:16]} 46. Rxh2 {[%clk 0:00:02]}  Qd1+ {[%clk 0:00:14]} 47. Rc2 {[%clk 0:00:01]}  h3 {[%clk 0:00:14]} 48. c4 {[%clk 0:00:01]}  h2 {[%clk 0:00:13]} 0-1


[Site "https://www.chess.com"]

[Event "Titled Tuesday Blitz May 24 Late 2022"]
[White "Vovk, Orest"]
[Black "Kaasen, Tor Fredrik"]
[WhiteFideId "14113490"]
[BlackFideId "1516647"]
[WhiteElo "2559"]
[BlackElo "2793"]
[Result "0-1"]
[Round "06"]
[TimeControl "180+1"]
[Date "2022.05.25"]
[WhiteClock "0:00:17"]
[BlackClock "0:00:31"]

1. h4 {[%clk 0:02:58]}  e5 {[%clk 0:02:59]} 2. h5 {[%clk 0:02:58]}  d5 {[%clk 0:02:59]} 3. h6 {[%clk 0:02:58]}  g6 {[%clk 0:02:54]} 4. d4 {[%clk 0:02:58]}  e4 {[%clk 0:02:55]} 5. c4 {[%clk 0:02:59]}  c6 {[%clk 0:02:55]} 6. Nc3 {[%clk 0:02:59]}  Nf6 {[%clk 0:02:54]} 7. Bf4 {[%clk 0:02:55]}  Be6 {[%clk 0:02:48]} 8. Qb3 {[%clk 0:02:54]}  Qb6 {[%clk 0:02:45]} 9. e3 {[%clk 0:02:54]}  Qxb3 {[%clk 0:02:41]} 10. axb3 {[%clk 0:02:54]}  Nbd7 {[%clk 0:02:40]} 11. c5 {[%clk 0:02:49]}  a6 {[%clk 0:02:37]} 12. b4 {[%clk 0:02:50]}  Rc8 {[%clk 0:02:36]} 13. Nge2 {[%clk 0:02:34]}  Nh5 {[%clk 0:02:35]} 14. Rxh5 {[%clk 0:02:16]}  gxh5 {[%clk 0:02:34]} 15. Nc1 {[%clk 0:02:13]}  Be7 {[%clk 0:02:30]} 16. Nb3 {[%clk 0:02:04]}  Bd8 {[%clk 0:02:30]} 17. Na5 {[%clk 0:01:44]}  Bxa5 {[%clk 0:02:20]} 18. bxa5 {[%clk 0:01:45]}  Rg8 {[%clk 0:01:57]} 19. Ra4 {[%clk 0:01:44]}  Ra8 {[%clk 0:01:54]} 20. Rb4 {[%clk 0:01:43]}  Ra7 {[%clk 0:01:54]} 21. Na4 {[%clk 0:01:39]}  Rg6 {[%clk 0:01:49]} 22. g3 {[%clk 0:01:23]}  h4 {[%clk 0:01:44]} 23. Be2 {[%clk 0:01:00]}  h3 {[%clk 0:01:21]} 24. Kf1 {[%clk 0:00:59]}  Ke7 {[%clk 0:01:15]} 25. Kg1 {[%clk 0:00:53]}  Nf6 {[%clk 0:00:57]} 26. Nb6 {[%clk 0:00:43]}  Ng4 {[%clk 0:00:52]} 27. Bxg4 {[%clk 0:00:34]}  Bxg4 {[%clk 0:00:53]} 28. Kh2 {[%clk 0:00:35]}  Ke6 {[%clk 0:00:44]} 29. Bb8 {[%clk 0:00:32]}  Rf6 {[%clk 0:00:37]} 30. Bf4 {[%clk 0:00:31]}  Ke7 {[%clk 0:00:35]} 31. Nc8+ {[%clk 0:00:30]}  Bxc8 {[%clk 0:00:34]} 32. Rb6 {[%clk 0:00:28]}  Rxf4 {[%clk 0:00:30]} 33. gxf4 {[%clk 0:00:28]}  Kf6 {[%clk 0:00:31]} 34. Kg3 {[%clk 0:00:27]}  Ra8 {[%clk 0:00:31]} 35. Rb3 {[%clk 0:00:25]}  Rb8 {[%clk 0:00:31]} 36. Ra3 {[%clk 0:00:18]}  Bf5 {[%clk 0:00:31]} 37. Rb3 {[%clk 0:00:16]}  Rg8+ {[%clk 0:00:31]} 38. Kh2 {[%clk 0:00:17]}  Rg2+ {[%clk 0:00:31]} 39. Kh1 {[%clk 0:00:17]}  Bc8 {[%clk 0:00:31]} 0-1


[Site "https://www.chess.com"]

[Event "Titled Tuesday Blitz May 24 Late 2022"]
[White "Wieczorek, Oskar"]
[Black "Oparin, Grigoriy"]
[WhiteFideId "1133950"]
[BlackFideId "24125890"]
[WhiteElo "2330"]
[BlackElo "2665"]
[Result "1-0"]
[Round "06"]
[TimeControl "180+1"]
[Date "2022.05.24"]
[WhiteClock "0:00:56"]
[BlackClock "0:01:23"]

1. e4 {[%clk 0:03:00]}  c5 {[%clk 0:02:57]} 2. Nf3 {[%clk 0:03:01]}  d6 {[%clk 0:02:58]} 3. d4 {[%clk 0:03:01]}  cxd4 {[%clk 0:02:59]} 4. Nxd4 {[%clk 0:03:02]}  Nf6 {[%clk 0:02:59]} 5. Nc3 {[%clk 0:03:02]}  Nc6 {[%clk 0:03:00]} 6. h3 {[%clk 0:02:58]}  e5 {[%clk 0:03:00]} 7. Nde2 {[%clk 0:02:56]}  Be7 {[%clk 0:02:56]} 8. g4 {[%clk 0:02:53]}  Be6 {[%clk 0:02:52]} 9. Bg2 {[%clk 0:02:52]}  O-O {[%clk 0:02:51]} 10. Ng3 {[%clk 0:02:51]}  Rc8 {[%clk 0:02:50]} 11. Be3 {[%clk 0:02:48]}  a6 {[%clk 0:02:49]} 12. O-O {[%clk 0:02:42]}  g6 {[%clk 0:02:46]} 13. a4 {[%clk 0:02:36]}  Nb4 {[%clk 0:02:45]} 14. a5 {[%clk 0:02:27]}  Qc7 {[%clk 0:02:44]} 15. Qd2 {[%clk 0:02:23]}  Nd7 {[%clk 0:02:37]} 16. Rfc1 {[%clk 0:02:17]}  Qb8 {[%clk 0:02:29]} 17. Nd5 {[%clk 0:02:08]}  Bxd5 {[%clk 0:02:09]} 18. exd5 {[%clk 0:02:07]}  f5 {[%clk 0:02:10]} 19. gxf5 {[%clk 0:02:07]}  gxf5 {[%clk 0:02:11]} 20. Bh6 {[%clk 0:02:03]}  Rc4 {[%clk 0:01:35]} 21. Bxf8 {[%clk 0:01:55]}  Qxf8 {[%clk 0:01:35]} 22. c3 {[%clk 0:01:50]}  h6 {[%clk 0:01:33]} 23. Qe2 {[%clk 0:01:31]}  Rh4 {[%clk 0:01:27]} 24. cxb4 {[%clk 0:01:28]}  e4 {[%clk 0:01:27]} 25. Rc7 {[%clk 0:01:25]}  Ne5 {[%clk 0:01:26]} 26. Rac1 {[%clk 0:01:23]}  Nd3 {[%clk 0:01:26]} 27. Rc8 {[%clk 0:01:22]}  Bd8 {[%clk 0:01:27]} 28. R1c7 {[%clk 0:01:10]}  Bxc7 {[%clk 0:01:23]} 29. Rxf8+ {[%clk 0:01:09]}  Kxf8 {[%clk 0:01:24]} 30. Nxf5 {[%clk 0:01:05]}  Rf4 {[%clk 0:01:23]} 31. Qh5 {[%clk 0:00:56]} 1-0


[Site "https://www.chess.com"]

[Event "Titled Tuesday Blitz May 24 Late 2022"]
[White "Zamorano, Jorge"]
[Black "Stevens, Christian"]
[WhiteFideId "173770"]
[BlackFideId "2604450"]
[WhiteElo "2331"]
[BlackElo "2550"]
[Result "1-0"]
[Round "06"]
[TimeControl "180+1"]
[Date "2022.05.25"]
[WhiteClock "0:00:04"]
[BlackClock "0:00:01"]

1. d4 {[%clk 0:02:52]}  Nf6 {[%clk 0:02:59]} 2. c4 {[%clk 0:02:51]}  e6 {[%clk 0:02:59]} 3. Nf3 {[%clk 0:02:51]}  d5 {[%clk 0:02:59]} 4. Nc3 {[%clk 0:02:51]}  c6 {[%clk 0:02:59]} 5. e3 {[%clk 0:02:51]}  Nbd7 {[%clk 0:02:59]} 6. Qc2 {[%clk 0:02:51]}  Bd6 {[%clk 0:02:59]} 7. b3 {[%clk 0:02:51]}  O-O {[%clk 0:02:59]} 8. Be2 {[%clk 0:02:52]}  Qe7 {[%clk 0:03:00]} 9. O-O {[%clk 0:02:52]}  e5 {[%clk 0:02:58]} 10. dxe5 {[%clk 0:02:47]}  Nxe5 {[%clk 0:02:57]} 11. cxd5 {[%clk 0:02:47]}  Nxf3+ {[%clk 0:02:12]} 12. Bxf3 {[%clk 0:02:44]}  Qe5 {[%clk 0:02:07]} 13. g3 {[%clk 0:02:42]}  Bg4 {[%clk 0:01:33]} 14. Bg2 {[%clk 0:01:36]}  cxd5 {[%clk 0:01:22]} 15. Bb2 {[%clk 0:01:35]}  Qh5 {[%clk 0:01:19]} 16. f3 {[%clk 0:01:33]}  Bf5 {[%clk 0:00:48]} 17. Qd2 {[%clk 0:01:32]}  Rad8 {[%clk 0:00:42]} 18. Ne2 {[%clk 0:01:27]}  a6 {[%clk 0:00:32]} 19. Rac1 {[%clk 0:01:04]}  Rfe8 {[%clk 0:00:31]} 20. Rfd1 {[%clk 0:01:00]}  Qh6 {[%clk 0:00:22]} 21. Nf4 {[%clk 0:00:56]}  Bb8 {[%clk 0:00:18]} 22. Qf2 {[%clk 0:00:51]}  Ba7 {[%clk 0:00:15]} 23. Bd4 {[%clk 0:00:51]}  Bxd4 {[%clk 0:00:15]} 24. Rxd4 {[%clk 0:00:51]}  g5 {[%clk 0:00:14]} 25. Ne2 {[%clk 0:00:45]}  g4 {[%clk 0:00:13]} 26. Nf4 {[%clk 0:00:44]}  gxf3 {[%clk 0:00:12]} 27. Bxf3 {[%clk 0:00:45]}  Bg4 {[%clk 0:00:09]} 28. Rcd1 {[%clk 0:00:27]}  Ne4 {[%clk 0:00:08]} 29. Qg2 {[%clk 0:00:17]}  Bxf3 {[%clk 0:00:08]} 30. Qxf3 {[%clk 0:00:18]}  Ng5 {[%clk 0:00:07]} 31. Qg4 {[%clk 0:00:16]}  Qg7 {[%clk 0:00:07]} 32. h4 {[%clk 0:00:12]}  Ne4 {[%clk 0:00:06]} 33. Qxg7+ {[%clk 0:00:10]}  Kxg7 {[%clk 0:00:06]} 34. Kg2 {[%clk 0:00:09]}  Rc8 {[%clk 0:00:06]} 35. Re1 {[%clk 0:00:04]}  Rc2+ {[%clk 0:00:06]} 36. Re2 {[%clk 0:00:05]}  Rxe2+ {[%clk 0:00:05]} 37. Nxe2 {[%clk 0:00:06]}  Nf6 {[%clk 0:00:05]} 38. Kf3 {[%clk 0:00:05]}  Rc8 {[%clk 0:00:05]} 39. Nf4 {[%clk 0:00:05]}  Rc2 {[%clk 0:00:05]} 40. g4 {[%clk 0:00:06]}  Rxa2 {[%clk 0:00:03]} 41. g5 {[%clk 0:00:06]}  Ne4 {[%clk 0:00:03]} 42. Nxd5 {[%clk 0:00:06]}  Nd2+ {[%clk 0:00:04]} 43. Kf4 {[%clk 0:00:06]}  Nxb3 {[%clk 0:00:05]} 44. Rb4 {[%clk 0:00:06]}  Nc5 {[%clk 0:00:05]} 45. Kf5 {[%clk 0:00:04]}  Rf2+ {[%clk 0:00:03]} 46. Nf4 {[%clk 0:00:05]}  Ne6 {[%clk 0:00:03]} 47. Rxb7 {[%clk 0:00:04]}  Nxf4 {[%clk 0:00:03]} 48. exf4 {[%clk 0:00:05]}  a5 {[%clk 0:00:03]} 49. h5 {[%clk 0:00:05]}  a4 {[%clk 0:00:03]} 50. h6+ {[%clk 0:00:05]}  Kf8 {[%clk 0:00:04]} 51. Ra7 {[%clk 0:00:05]}  Ra2 {[%clk 0:00:01]} 52. Kf6 {[%clk 0:00:04]}  Rf2 {[%clk 0:00:02]} 53. f5 {[%clk 0:00:04]}  Ke8 {[%clk 0:00:01]} 54. Rxa4 {[%clk 0:00:03]}  Re2 {[%clk 0:00:02]} 55. Ra8+ {[%clk 0:00:03]}  Kd7 {[%clk 0:00:03]} 56. Kxf7 {[%clk 0:00:03]}  Rf2 {[%clk 0:00:02]} 57. f6 {[%clk 0:00:03]}  Kd6 {[%clk 0:00:03]} 58. Rd8+ {[%clk 0:00:03]}  Ke5 {[%clk 0:00:03]} 59. Kg7 {[%clk 0:00:03]}  Rg2 {[%clk 0:00:03]} 60. f7 {[%clk 0:00:04]}  Rxg5+ {[%clk 0:00:03]} 61. Kxh7 {[%clk 0:00:05]}  Rf5 {[%clk 0:00:01]} 62. f8=Q {[%clk 0:00:05]}  Rf7+ {[%clk 0:00:01]} 63. Qxf7 {[%clk 0:00:04]} 1-0


[Site "https://www.chess.com"]

[Event "Titled Tuesday Blitz May 24 Late 2022"]
[White "Al-Tarboush, Ward"]
[Black "Kobalia, Mikhail"]
[WhiteFideId "7601450"]
[BlackFideId "4119150"]
[WhiteElo "2294"]
[BlackElo "2667"]
[Result "0-1"]
[Round "07"]
[TimeControl "180+1"]
[Date "2022.05.24"]
[WhiteClock "0:00:02"]
[BlackClock "0:00:14"]

1. e4 {[%clk 0:03:00]}  c5 {[%clk 0:02:56]} 2. Nf3 {[%clk 0:03:00]}  e6 {[%clk 0:02:56]} 3. d4 {[%clk 0:03:00]}  cxd4 {[%clk 0:02:56]} 4. Nxd4 {[%clk 0:03:01]}  a6 {[%clk 0:02:57]} 5. Bd3 {[%clk 0:03:01]}  Bc5 {[%clk 0:02:55]} 6. Nb3 {[%clk 0:03:00]}  Be7 {[%clk 0:02:56]} 7. Qg4 {[%clk 0:02:56]}  g6 {[%clk 0:02:55]} 8. Qe2 {[%clk 0:02:41]}  d6 {[%clk 0:02:55]} 9. Be3 {[%clk 0:02:39]}  Nc6 {[%clk 0:02:54]} 10. Na3 {[%clk 0:02:32]}  b5 {[%clk 0:02:49]} 11. O-O-O {[%clk 0:02:29]}  Qc7 {[%clk 0:02:47]} 12. f4 {[%clk 0:02:17]}  Nf6 {[%clk 0:02:46]} 13. Kb1 {[%clk 0:02:09]}  O-O {[%clk 0:02:45]} 14. g4 {[%clk 0:02:07]}  Nb4 {[%clk 0:02:40]} 15. h4 {[%clk 0:02:00]}  Bb7 {[%clk 0:02:39]} 16. h5 {[%clk 0:01:53]}  Nxe4 {[%clk 0:02:39]} 17. Qh2 {[%clk 0:01:09]}  g5 {[%clk 0:02:35]} 18. fxg5 {[%clk 0:01:06]}  Nxg5 {[%clk 0:02:30]} 19. Rhf1 {[%clk 0:00:51]}  h6 {[%clk 0:02:26]} 20. Nd4 {[%clk 0:00:46]}  Rac8 {[%clk 0:02:21]} 21. Qd2 {[%clk 0:00:45]}  Nxd3 {[%clk 0:02:18]} 22. cxd3 {[%clk 0:00:46]}  Bd5 {[%clk 0:02:04]} 23. Nac2 {[%clk 0:00:43]}  Qb7 {[%clk 0:01:58]} 24. Nb4 {[%clk 0:00:35]}  a5 {[%clk 0:01:52]} 25. Nxd5 {[%clk 0:00:30]}  Qxd5 {[%clk 0:01:52]} 26. Ne2 {[%clk 0:00:21]}  b4 {[%clk 0:01:49]} 27. Nf4 {[%clk 0:00:20]}  Qb5 {[%clk 0:01:49]} 28. d4 {[%clk 0:00:20]}  a4 {[%clk 0:01:44]} 29. d5 {[%clk 0:00:20]}  e5 {[%clk 0:01:43]} 30. Ne2 {[%clk 0:00:20]}  Ne4 {[%clk 0:01:40]} 31. Qe1 {[%clk 0:00:20]}  Qc4 {[%clk 0:01:38]} 32. Bxh6 {[%clk 0:00:15]}  Qc2+ {[%clk 0:01:37]} 33. Ka1 {[%clk 0:00:15]}  a3 {[%clk 0:01:38]} 34. Rb1 {[%clk 0:00:11]}  b3 {[%clk 0:01:18]} 35. Qd1 {[%clk 0:00:06]}  Rfe8 {[%clk 0:01:06]} 36. Qxc2 {[%clk 0:00:02]}  bxc2 {[%clk 0:01:05]} 37. Rbc1 {[%clk 0:00:02]}  Rc4 {[%clk 0:00:22]} 38. b3 {[%clk 0:00:02]}  Rc7 {[%clk 0:00:20]} 39. Rf3 {[%clk 0:00:03]}  Rec8 {[%clk 0:00:18]} 40. Re3 {[%clk 0:00:03]}  Ng5 {[%clk 0:00:17]} 41. Ng3 {[%clk 0:00:02]}  Kh7 {[%clk 0:00:13]} 42. Nf5 {[%clk 0:00:02]}  Bf6 {[%clk 0:00:14]} 0-1


[Site "https://www.chess.com"]

[Event "Titled Tuesday Blitz May 24 Late 2022"]
[White "Antipov, Mikhail Al."]
[Black "Nakamura, Hikaru"]
[WhiteFideId "4107012"]
[BlackFideId "2016192"]
[WhiteElo "2512"]
[BlackElo "2850"]
[Result "0-1"]
[Round "07"]
[TimeControl "180+1"]
[Date "2022.05.24"]
[WhiteClock "0:00:13"]
[BlackClock "0:01:05"]

1. e4 {[%clk 0:03:00]}  e5 {[%clk 0:02:59]} 2. Nf3 {[%clk 0:03:01]}  Nc6 {[%clk 0:03:00]} 3. Bc4 {[%clk 0:02:59]}  Bc5 {[%clk 0:02:59]} 4. O-O {[%clk 0:02:59]}  Nf6 {[%clk 0:02:59]} 5. d3 {[%clk 0:03:00]}  d6 {[%clk 0:03:00]} 6. c3 {[%clk 0:03:00]}  a6 {[%clk 0:02:59]} 7. a4 {[%clk 0:03:00]}  Ba7 {[%clk 0:02:59]} 8. Nbd2 {[%clk 0:02:59]}  O-O {[%clk 0:02:59]} 9. h3 {[%clk 0:02:57]}  h6 {[%clk 0:02:59]} 10. Re1 {[%clk 0:02:58]}  Re8 {[%clk 0:03:00]} 11. Bb3 {[%clk 0:02:57]}  Be6 {[%clk 0:02:59]} 12. a5 {[%clk 0:02:50]}  d5 {[%clk 0:02:47]} 13. Ba4 {[%clk 0:02:41]}  Nd7 {[%clk 0:02:41]} 14. b4 {[%clk 0:02:28]}  f6 {[%clk 0:02:30]} 15. Nf1 {[%clk 0:02:11]}  Nf8 {[%clk 0:02:24]} 16. Nh4 {[%clk 0:01:50]}  d4 {[%clk 0:02:00]} 17. c4 {[%clk 0:01:44]}  Nxb4 {[%clk 0:02:00]} 18. Bxe8 {[%clk 0:01:44]}  Qxe8 {[%clk 0:02:01]} 19. Ba3 {[%clk 0:01:37]}  Nc6 {[%clk 0:02:00]} 20. Qd2 {[%clk 0:01:36]}  Nd7 {[%clk 0:01:56]} 21. Reb1 {[%clk 0:01:36]}  Rb8 {[%clk 0:01:56]} 22. Ng3 {[%clk 0:01:35]}  Bc5 {[%clk 0:01:54]} 23. Nhf5 {[%clk 0:01:30]}  Qf8 {[%clk 0:01:51]} 24. Bxc5 {[%clk 0:01:30]}  Nxc5 {[%clk 0:01:52]} 25. h4 {[%clk 0:01:23]}  g6 {[%clk 0:01:44]} 26. Nxh6+ {[%clk 0:01:13]}  Kh7 {[%clk 0:01:44]} 27. Nhf5 {[%clk 0:01:11]}  gxf5 {[%clk 0:01:44]} 28. exf5 {[%clk 0:01:12]}  Bd7 {[%clk 0:01:38]} 29. Qe2 {[%clk 0:01:08]}  Qh6 {[%clk 0:01:38]} 30. Ne4 {[%clk 0:01:06]}  Nxe4 {[%clk 0:01:27]} 31. Qxe4 {[%clk 0:01:07]}  Nd8 {[%clk 0:01:24]} 32. Qd5 {[%clk 0:00:40]}  Bc6 {[%clk 0:01:23]} 33. Qc5 {[%clk 0:00:40]}  Nf7 {[%clk 0:01:19]} 34. Qe7 {[%clk 0:00:34]}  Qg7 {[%clk 0:01:19]} 35. f3 {[%clk 0:00:35]}  Re8 {[%clk 0:01:15]} 36. Qxc7 {[%clk 0:00:35]}  Bxf3 {[%clk 0:01:12]} 37. Ra2 {[%clk 0:00:35]}  Bc6 {[%clk 0:01:12]} 38. Rf2 {[%clk 0:00:32]}  Nh6 {[%clk 0:01:11]} 39. Qxg7+ {[%clk 0:00:28]}  Kxg7 {[%clk 0:01:11]} 40. Rb6 {[%clk 0:00:28]}  Ng4 {[%clk 0:01:09]} 41. Rfb2 {[%clk 0:00:27]}  Re7 {[%clk 0:01:09]} 42. g3 {[%clk 0:00:24]}  Kh6 {[%clk 0:01:05]} 43. Rxc6 {[%clk 0:00:15]}  bxc6 {[%clk 0:01:06]} 44. Rb6 {[%clk 0:00:15]}  e4 {[%clk 0:01:04]} 45. dxe4 {[%clk 0:00:16]}  d3 {[%clk 0:01:05]} 46. Kf1 {[%clk 0:00:13]}  Rd7 {[%clk 0:01:05]} 0-1


[Site "https://www.chess.com"]

[Event "Titled Tuesday Blitz May 24 Late 2022"]
[White "Avramidou, Anastasia"]
[Black "Rychagov, Andrey"]
[WhiteFideId "4239873"]
[BlackFideId "4119932"]
[WhiteElo "2183"]
[BlackElo "2500"]
[Result "0-1"]
[Round "07"]
[TimeControl "180+1"]
[Date "2022.05.24"]
[WhiteClock "0:00:03"]
[BlackClock "0:00:05"]

1. d4 {[%clk 0:02:52]}  f5 {[%clk 0:02:59]} 2. Nc3 {[%clk 0:02:52]}  Nf6 {[%clk 0:02:59]} 3. Bg5 {[%clk 0:02:52]}  d5 {[%clk 0:02:56]} 4. h4 {[%clk 0:02:53]}  Be6 {[%clk 0:02:51]} 5. e3 {[%clk 0:02:51]}  Nbd7 {[%clk 0:02:41]} 6. Nh3 {[%clk 0:02:35]}  Bf7 {[%clk 0:02:38]} 7. Nf4 {[%clk 0:02:34]}  c6 {[%clk 0:02:33]} 8. Bd3 {[%clk 0:02:31]}  e6 {[%clk 0:02:27]} 9. h5 {[%clk 0:02:29]}  Be7 {[%clk 0:02:23]} 10. h6 {[%clk 0:02:28]}  g6 {[%clk 0:02:23]} 11. Qe2 {[%clk 0:02:07]}  e5 {[%clk 0:02:17]} 12. dxe5 {[%clk 0:02:06]}  Nxe5 {[%clk 0:02:17]} 13. O-O-O {[%clk 0:02:04]}  Qa5 {[%clk 0:02:08]} 14. Kb1 {[%clk 0:02:02]}  O-O {[%clk 0:01:58]} 15. f3 {[%clk 0:01:47]}  b5 {[%clk 0:01:57]} 16. Qe1 {[%clk 0:01:40]}  Nxd3 {[%clk 0:01:32]} 17. Nxd3 {[%clk 0:01:35]}  b4 {[%clk 0:01:23]} 18. Ne2 {[%clk 0:01:33]}  c5 {[%clk 0:01:13]} 19. Nec1 {[%clk 0:01:23]}  c4 {[%clk 0:01:11]} 20. Ne5 {[%clk 0:01:23]}  Rfc8 {[%clk 0:00:56]} 21. e4 {[%clk 0:01:04]}  dxe4 {[%clk 0:00:52]} 22. Nxf7 {[%clk 0:00:58]}  Kxf7 {[%clk 0:00:49]} 23. Bxf6 {[%clk 0:00:56]}  Bxf6 {[%clk 0:00:47]} 24. Rd7+ {[%clk 0:00:12]}  Kg8 {[%clk 0:00:46]} 25. Qd2 {[%clk 0:00:11]}  Qe5 {[%clk 0:00:32]} 26. Qd5+ {[%clk 0:00:10]}  Qxd5 {[%clk 0:00:32]} 27. Rxd5 {[%clk 0:00:11]}  exf3 {[%clk 0:00:28]} 28. gxf3 {[%clk 0:00:12]}  Rd8 {[%clk 0:00:28]} 29. Rb5 {[%clk 0:00:11]}  Rab8 {[%clk 0:00:26]} 30. Ra5 {[%clk 0:00:11]}  Rb7 {[%clk 0:00:25]} 31. Ne2 {[%clk 0:00:10]}  b3 {[%clk 0:00:21]} 32. axb3 {[%clk 0:00:10]}  cxb3 {[%clk 0:00:22]} 33. c3 {[%clk 0:00:10]}  Rd3 {[%clk 0:00:19]} 34. Rf1 {[%clk 0:00:10]}  Re7 {[%clk 0:00:16]} 35. Nc1 {[%clk 0:00:09]}  Rd2 {[%clk 0:00:15]} 36. Nxb3 {[%clk 0:00:09]}  Rh2 {[%clk 0:00:14]} 37. Rd5 {[%clk 0:00:07]}  Ree2 {[%clk 0:00:12]} 38. Nd4 {[%clk 0:00:04]}  Rxb2+ {[%clk 0:00:11]} 39. Kc1 {[%clk 0:00:05]}  Bxd4 {[%clk 0:00:09]} 40. Rxd4 {[%clk 0:00:04]}  Ra2 {[%clk 0:00:09]} 41. Kb1 {[%clk 0:00:04]}  Rhb2+ {[%clk 0:00:09]} 42. Kc1 {[%clk 0:00:05]}  Rh2 {[%clk 0:00:10]} 43. Kb1 {[%clk 0:00:05]}  Rhb2+ {[%clk 0:00:09]} 44. Kc1 {[%clk 0:00:05]}  Rb3 {[%clk 0:00:07]} 45. Re1 {[%clk 0:00:02]}  Ra1+ {[%clk 0:00:05]} 46. Kc2 {[%clk 0:00:02]}  Rxe1 {[%clk 0:00:06]} 47. Kxb3 {[%clk 0:00:02]}  Re3 {[%clk 0:00:06]} 48. Rd8+ {[%clk 0:00:02]}  Kf7 {[%clk 0:00:06]} 49. Rd7+ {[%clk 0:00:02]}  Kf6 {[%clk 0:00:07]} 50. Rxh7 {[%clk 0:00:02]}  Rxf3 {[%clk 0:00:07]} 51. Rxa7 {[%clk 0:00:02]}  Rh3 {[%clk 0:00:07]} 52. h7 {[%clk 0:00:03]}  f4 {[%clk 0:00:07]} 53. Kc4 {[%clk 0:00:03]}  g5 {[%clk 0:00:06]} 54. Kd4 {[%clk 0:00:03]}  Kg6 {[%clk 0:00:06]} 55. Ke4 {[%clk 0:00:03]}  Rxh7 {[%clk 0:00:05]} 56. Ra6+ {[%clk 0:00:02]}  Kh5 {[%clk 0:00:05]} 57. c4 {[%clk 0:00:02]}  Re7+ {[%clk 0:00:05]} 58. Kf3 {[%clk 0:00:02]}  Re3+ {[%clk 0:00:05]} 59. Kf2 {[%clk 0:00:02]}  Rc3 {[%clk 0:00:05]} 60. Rc6 {[%clk 0:00:03]}  Kg4 {[%clk 0:00:05]} 61. c5 {[%clk 0:00:03]}  Rc2+ {[%clk 0:00:06]} 62. Ke1 {[%clk 0:00:04]}  Kg3 {[%clk 0:00:06]} 63. Rc8 {[%clk 0:00:03]}  f3 {[%clk 0:00:06]} 64. Kd1 {[%clk 0:00:02]}  Rc4 {[%clk 0:00:05]} 65. Kd2 {[%clk 0:00:02]}  f2 {[%clk 0:00:05]} 66. Rf8 {[%clk 0:00:03]}  Rxc5 {[%clk 0:00:05]} 67. Ke2 {[%clk 0:00:03]}  Re5+ {[%clk 0:00:05]} 68. Kd2 {[%clk 0:00:03]}  Re1 {[%clk 0:00:05]} 0-1


[Site "https://www.chess.com"]

[Event "Titled Tuesday Blitz May 24 Late 2022"]
[White "Bernal Moro, Luis Javier"]
[Black "Galiana Fernandez, Adrian"]
[WhiteFideId "2200236"]
[BlackFideId "32010150"]
[WhiteElo "2373"]
[BlackElo "2133"]
[Result "0-1"]
[Round "07"]
[TimeControl "180+1"]
[Date "2022.05.25"]
[WhiteClock "0:00:20"]
[BlackClock "0:00:06"]

1. c4 {[%clk 0:03:00]}  e6 {[%clk 0:01:55]} 2. Nc3 {[%clk 0:02:56]}  d5 {[%clk 0:01:55]} 3. d4 {[%clk 0:02:55]}  Nf6 {[%clk 0:01:54]} 4. cxd5 {[%clk 0:02:55]}  exd5 {[%clk 0:01:54]} 5. Bg5 {[%clk 0:02:55]}  Be7 {[%clk 0:01:55]} 6. Qc2 {[%clk 0:02:54]}  c5 {[%clk 0:01:47]} 7. dxc5 {[%clk 0:02:45]}  d4 {[%clk 0:01:47]} 8. Rd1 {[%clk 0:02:40]}  Nc6 {[%clk 0:01:37]} 9. Nf3 {[%clk 0:02:40]}  Bxc5 {[%clk 0:01:22]} 10. e3 {[%clk 0:02:26]}  O-O {[%clk 0:01:12]} 11. Be2 {[%clk 0:02:10]}  h6 {[%clk 0:01:03]} 12. Bxf6 {[%clk 0:01:35]}  Qxf6 {[%clk 0:01:01]} 13. Ne4 {[%clk 0:01:35]}  Bb4+ {[%clk 0:01:01]} 14. Kf1 {[%clk 0:01:36]}  Qe7 {[%clk 0:00:52]} 15. Nxd4 {[%clk 0:01:34]}  Nxd4 {[%clk 0:00:51]} 16. Rxd4 {[%clk 0:01:34]}  Bf5 {[%clk 0:00:50]} 17. Bd3 {[%clk 0:01:26]}  Rac8 {[%clk 0:00:48]} 18. Qd1 {[%clk 0:01:25]}  Rfd8 {[%clk 0:00:40]} 19. f3 {[%clk 0:01:05]}  Ba5 {[%clk 0:00:33]} 20. Kf2 {[%clk 0:00:50]}  Bb6 {[%clk 0:00:28]} 21. Rxd8+ {[%clk 0:00:49]}  Rxd8 {[%clk 0:00:26]} 22. Qc2 {[%clk 0:00:43]}  Bxe4 {[%clk 0:00:16]} 23. Bxe4 {[%clk 0:00:41]}  f5 {[%clk 0:00:16]} 24. Qb3+ {[%clk 0:00:41]}  Kh8 {[%clk 0:00:16]} 25. Bxf5 {[%clk 0:00:36]}  Rd2+ {[%clk 0:00:09]} 26. Kg3 {[%clk 0:00:34]}  Qe5+ {[%clk 0:00:06]} 27. Kg4 {[%clk 0:00:23]}  h5+ {[%clk 0:00:06]} 28. Kg5 {[%clk 0:00:21]}  Bd8+ {[%clk 0:00:06]} 29. Kg6 {[%clk 0:00:20]}  Qf6+ {[%clk 0:00:06]} 30. Kxh5 {[%clk 0:00:20]}  Qg5# {[%clk 0:00:06]} 0-1


[Site "https://www.chess.com"]